Cogmind - Beta 11 @@@ ROGUE MODE // 2022.03.19 @ 21:20:18 Player: AnthonyDPS 2004 Result: Destroyed by S-10 Pest with Light Assault Rifle Performance ------------- Evolutions (1) 500 Regions Visited (5) 1000 Robots Destroyed (12) 60 Value Destroyed (142) 142 Prototype IDs (6) 120 Alien Tech Used (0) 0 Bonus (500) 500 TOTAL SCORE: 2322 Bonus ------- Pacifist 200 Aligned with FarCom 300 Cogmind --------- Core Integrity 0/400 Matter 300/300 Energy 82/100 System Corruption 0% Temperature Cool (0) Movement Core (50) Location -8/Mines Parts ------- > --- POWER (1) -------- (None) > --- PROPULSION (3) --- (None) > --- UTILITY (3) ------ Signal Interpreter > --- WEAPON (2) ------- (None) > --- INVENTORY (5) ---- Ion Engine Light Ion Engine Peak State ------------ > --- POWER ------------ Light Ion Engine > --- PROPULSION ------- Wheel Compact Wheel > --- UTILITY ---------- Medium Storage Unit Signal Interpreter Targeting Computer > --- WEAPON ----------- Katana Makeshift Axe > --- INVENTORY -------- Ion Engine Improved Aluminum Leg Improved Aluminum Leg Improved Aluminum Leg Improved Aluminum Leg ECM Suite Hacking Suite Beam Cannon Improved Light Cannon Mining Laser [Rating: 14] Favorites ----------- Power Light Ion Engine Engine Light Ion Engine Propulsion Compact Wheel Leg Improved Aluminum Leg Wheel Compact Wheel Flight Unit Flight Unit Utility Medium Storage Unit Device ECM Suite Storage Medium Storage Unit Processor Targeting Computer Weapon Beam Cannon Energy Gun Medium Laser Energy Cannon Beam Cannon Ballistic Gun Assault Rifle Ballistic Cannon Improved Light Cannon Special Weapon Mining Laser Impact Weapon Heavy Hammer Slashing Weapon Katana Build | -11 -10 -9 -9 -9 -8 ------- Run | Scr Mat Mat Min Exi Min Slots Evolved 2 | . . 2 . . . Power . | . . . . . . Propulsion 1 | . . 1 . . . Utility 1 | . . 1 . . . Weapon . | . . . . . . Parts Attached 34 | 8 5 5 1 . 15 Power 3 | 1 . . . . 2 Engine 3 | 1 . . . . 2 Core . | . . . . . . Reactor . | . . . . . . Propulsion 9 | 4 . . . . 5 Treads . | . . . . . . Leg 3 | 1 . . . . 2 Wheel 3 | 3 . . . . . Hover . | . . . . . . Flight 3 | . . . . . 3 Utility 9 | 1 4 1 1 . 2 Device 2 | . 1 . . . 1 Storage 5 | 1 3 . . . 1 Processor 2 | . . 1 1 . . Hackware . | . . . . . . Protection . | . . . . . . Artifact . | . . . . . . Weapon 13 | 2 1 4 . . 6 Energy Gun 2 | 1 1 . . . . Energy Cannon 1 | . . 1 . . . Ballistic Gun 1 | 1 . . . . . Ballistic Cannon 1 | . . 1 . . . Launcher . | . . . . . . Special Weapon 2 | . . . . . 2 Impact Weapon 2 | . . 2 . . . Slashing Weapon 4 | . . . . . 4 Piercing Weapon . | . . . . . . Special Melee Weapon . | . . . . . . Unidentified Prototypes . | . . . . . . Parts Lost 8 | . . . . . 8 Power . | . . . . . . Propulsion 5 | . . . . . 5 Utility 1 | . . . . . 1 Weapon 2 | . . . . . 2 Highest Loss Streak 8 | . . . . . 8 To Critical Strikes . | . . . . . . Average Slot Usage (%) 85 | . 87 86 88 88 77 Engine 11 | . 14 11 11 11 8 Wheel 20 | . 28 22 22 22 9 Flight 2 | . . . . . 12 Device 4 | . 1 11 9 . 6 Storage 11 | . 14 11 11 11 8 Processor 13 | . . 9 12 22 15 Energy Gun 4 | . 15 6 . . . Energy Cannon 6 | . . 6 11 11 2 Ballistic Gun 2 | . 12 . . . . Ballistic Cannon 6 | . . 6 11 11 2 Slashing Weapon 1 | . . . . . 9 Naked Turns . | . . . . . . Heaviest Build 37 | 12 37 22 22 20 20 Greatest Support 26 | 26 26 26 26 26 26 Greatest Overweight (x) 2 | . 1 . . . 2 Average Overweight (x) . | . . . . . . Largest Inventory Capacity 15 | 8 15 10 10 10 10 Average Capacity 9 | 6 9 10 10 10 8 Most Carried 10 | 6 10 10 10 10 10 Average Carried 8 | 3 7 9 9 10 7 Final Capacity 10 | 8 10 10 10 10 5 Final Carried 10 | 4 10 10 10 10 2 Class Distribution -------------------- 94% | Mutant 5% | Scavenger-Mutant Dominant Class ---------------- Mutant | -10/Materials Mutant | -9/Materials Mutant | -9/Mines Mutant | -9/Exiles Mutant | -8/Mines Resources | -11 -10 -9 -9 -9 -8 ----------- Run | Scr Mat Mat Min Exi Min Matter Collected 544 | 187 . 161 55 . 141 Remotely . | . . . . . . Salvage Created 301 | . . 13 41 . 247 Parts 23 | . . 1 1 . 21 Haulers Intercepted . | . . . . . . Recyclers Shooed . | . . . . . . Parts Field Recycled . | . . . . . . Retrieved Matter . | . . . . . . Parts Self-Destructed . | . . . . . . Prevented . | . . . . . . Kills | -11 -10 -9 -9 -9 -8 ------- Run | Scr Mat Mat Min Exi Min Combat Hostiles Destroyed 9 | . . . 1 . 8 Melee 3 | . . . . . 3 Cannons 5 | . . . 1 . 4 Classes Destroyed 4 | . . 1 1 . 2 Recycler 2 | . . . . . 2 Watcher 1 | . . 1 . . . Swarmer 8 | . . . . . 8 Grunt 1 | . . . 1 . . Best Kill Streak 4 | . . 1 1 . 4 Combat Bots Only 4 | . . . 1 . 4 Max Kills in Single Turn 1 | . . 1 1 . 1 Gunslinging . | . . . . . . Exploded . | . . . . . . Melee 1 | . . . . . 1 Uniques/NPCs Destroyed . | . . . . . . Combat | -11 -10 -9 -9 -9 -8 -------- Run | Scr Mat Mat Min Exi Min Damage Taken 906 | . . . . . 906 Core 404 | . . . . . 404 Absorbed by Shields . | . . . . . . Core Remaining (%) 100 | 100 100 . . . . Volleys Fired 17 | . 1 4 1 . 11 Largest 2 | . 2 2 2 . 2 Hottest 100 | . 70 99 99 . 100 Shots Fired 31 | . 2 8 2 . 19 Gun 2 | . 2 . . . . Cannon 26 | . . 8 2 . 16 Launcher . | . . . . . . Special 3 | . . . . . 3 Kinetic 14 | . 1 4 1 . 8 Thermal 17 | . 1 4 1 . 11 Explosive . | . . . . . . Electromagnetic . | . . . . . . Robot Hit Streak 3 | . 1 1 2 . 3 Robot Miss Streak 4 | . 1 2 . . 4 Penetration Max . | . . . . . . Secondary Targets . | . . . . . . Shots Hit Robots 20 | . 1 3 1 . 15 Core Hits 14 | . . 1 1 . 12 Critical Kills . | . . . . . . Critical Parts Destroyed . | . . . . . . Critical Strikes 1 | . . . . . 1 Sever 1 | . . . . . 1 Melee Attacks 16 | . . . . . 16 Impact . | . . . . . . Slashing 16 | . . . . . 16 Piercing . | . . . . . . Sneak Attacks 2 | . . . . . 2 Combat Hostiles . | . . . . . . Follow-up Attacks 1 | . . . . . 1 Damage Inflicted 649 | . 15 56 18 . 560 Guns 15 | . 15 . . . . Cannons 246 | . . 56 18 . 172 Explosions . | . . . . . . Melee 328 | . . . . . 328 Ramming 36 | . . . . . 36 Kinetic 120 | . 15 21 . . 84 Thermal 165 | . . 35 18 . 112 Explosive . | . . . . . . Electromagnetic . | . . . . . . Impact . | . . . . . . Slashing 328 | . . . . . 328 Piercing . | . . . . . . Highest Corruption . | . . . . . . Average Corruption . | . . . . . . Corruption Purged . | . . . . . . Corruption Blocked . | . . . . . . Overload Shots . | . . . . . . Overflow Damage 7 | . . . . . 7 Projectiles 7 | . . . . . 7 Explosions . | . . . . . . Melee . | . . . . . . Knockbacks 1 | . . . . . 1 Impact . | . . . . . . Kinetic 1 | . . . . . 1 Secondary . | . . . . . . Self-Inflicted Damage 8 | . . . . . 8 Shots . | . . . . . . Rammed 5 | . . . . . 5 Targets Rammed 16 | . . . . . 16 Kicked 11 | . . . . . 11 Crushed . | . . . . . . Highest Temperature 240 | . 9 60 30 . 240 Average Temperature 77 | . 6 32 16 . 108 Received Heat Transfer . | . . . . . . Effects 1 | . . . . . 1 Energy Bleed 1 | . . . . . 1 Siege Activations . | . . . . . . Robots Corrupted . | . . . . . . Combat Hostiles . | . . . . . . Parts Fried 2 | . . . . . 2 Impact Corruptions 1 | . . . . . 1 Robots Melted . | . . . . . . Combat Hostiles . | . . . . . . Parts Melted . | . . . . . . Heat Transferred 346 | . . 74 37 . 235 Parts Sabotaged . | . . . . . . Parts Stolen . | . . . . . . Parts Stripped . | . . . . . . Power Chain Reactions . | . . . . . . Missiles Intercepted . | . . . . . . Alert | -11 -10 -9 -9 -9 -8 ------- Run | Scr Mat Mat Min Exi Min Peak Influence 192 | . 65 51 39 . 192 Initial 27 | . . 27 19 . . Average 54 | . 36 40 33 . 116 Maximum Alert Level . | . . . . . . Low Security (%) 100 | 100 100 100 100 . 100 Level 1 . | . . . . . . Level 2 . | . . . . . . Level 3 . | . . . . . . Level 4 . | . . . . . . Level 5 . | . . . . . . High Security . | . . . . . . Max Security . | . . . . . . Squads Dispatched 1 | . . 1 . . . Investigation 1 | . . 1 . . . Extermination . | . . . . . . Reinforcement . | . . . . . . Assault . | . . . . . . Garrison . | . . . . . . Intercept . | . . . . . . Searches Triggered . | . . . . . . Construction Impeded . | . . . . . . Haulers Reinforced . | . . . . . . Active Scanning Responses . | . . . . . . Cargo Convoy Interrupts . | . . . . . . Stealth | -11 -10 -9 -9 -9 -8 --------- Run | Scr Mat Mat Min Exi Min Distress Signals . | . . . . . . Communications Jammed . | . . . . . . Distress Signals . | . . . . . . Times Spotted 26 | . 4 2 2 . 18 Peak Tracking Total 9 | . 4 1 2 . 9 Tactical Retreats 3 | . 1 . . . 2 Traps | -11 -10 -9 -9 -9 -8 ------- Run | Scr Mat Mat Min Exi Min Traps Triggered . | . . . . . . Indirectly . | . . . . . . Trap Hack Attempts . | . . . . . . Triggered . | . . . . . . Disarmed . | . . . . . . Reprogrammed . | . . . . . . Reused . | . . . . . . Traps Extracted . | . . . . . . Installed . | . . . . . . Triggered . | . . . . . . Machines | -11 -10 -9 -9 -9 -8 ---------- Run | Scr Mat Mat Min Exi Min Machines Disabled . | . . . . . . Max in Single Turn . | . . . . . . Machines Sabotaged . | . . . . . . Garrisons Compromised . | . . . . . . Overloaded Fab Kills . | . . . . . . Hacking | -11 -10 -9 -9 -9 -8 --------- Run | Scr Mat Mat Min Exi Min Machines Accessed 6 | . 1 2 . 3 . Terminals 3 | . 1 2 . . . Fabricators . | . . . . . . Repair Stations . | . . . . . . Recycling Units . | . . . . . . Scanalyzers . | . . . . . . Garrison Access . | . . . . . . Total Hacks 48 | . 3 3 . 42 . Successful 47 | . 2 3 . 42 . Failed 1 | . 1 . . . . Catastrophic 1 | . 1 . . . . Database Lockouts . | . . . . . . Manual . | . . . . . . Terminals 6 | . 3 3 . . . Fabricators . | . . . . . . Repair Stations . | . . . . . . Recycling Units . | . . . . . . Scanalyzers . | . . . . . . Garrison Access . | . . . . . . Terminal Hacks 47 | . 2 3 . 42 . Record 42 | . . . . 42 . Prototype ID Bank 3 | . 1 2 . . . Emergency Access Points 1 | . . 1 . . . Dispatch Records 1 | . 1 . . . . Fabricator Hacks . | . . . . . . Repair Station Hacks . | . . . . . . Recycling Unit Hacks . | . . . . . . Scanalyzer . | . . . . . . Garrison Access Hacks . | . . . . . . Unauthorized Hacks . | . . . . . . Terminals . | . . . . . . Fabricators . | . . . . . . Repair Stations . | . . . . . . Recycling Units . | . . . . . . Scanalyzers . | . . . . . . Garrison Access . | . . . . . . Data Cores Recovered . | . . . . . . Used . | . . . . . . Hacking Detections 2 | . 1 1 . . . Full Trace Events . | . . . . . . Feedback Events . | . . . . . . Feedback Blocked . | . . . . . . Robot Schematics Acquired . | . . . . . . Robots Built . | . . . . . . Authchips . | . . . . . . Time . | . . . . . . Total Robot Build Rating . | . . . . . . Part Schematics Acquired . | . . . . . . Parts Built . | . . . . . . Authchips . | . . . . . . Time . | . . . . . . Total Part Build Rating . | . . . . . . Parts Repaired . | . . . . . . Time . | . . . . . . Parts Recycled . | . . . . . . Recycled Matter . | . . . . . . Retrieved Matter . | . . . . . . Retrieved Components . | . . . . . . Parts Scanalyzed . | . . . . . . Part Schematics Acquired . | . . . . . . Parts Damaged . | . . . . . . Bothacking | -11 -10 -9 -9 -9 -8 ------------ Run | Scr Mat Mat Min Exi Min Used RIF Installer . | . . . . . . Robots Hacked . | . . . . . . Non-combat . | . . . . . . Combat . | . . . . . . Robot Hacks Applied . | . . . . . . Relay Couplers Released . | . . . . . . Fabnet Peak Effective % . | . . . . . . Robots Rewired . | . . . . . . Allies Hacked . | . . . . . . Hacks Repelled . | . . . . . . Allies | -11 -10 -9 -9 -9 -8 -------- Run | Scr Mat Mat Min Exi Min Total Allies . | . . . . . . Largest Group . | . . . . . . Highest-Rated Group . | . . . . . . Highest-Rated Ally . | . . . . . . Total Orders . | . . . . . . Ally Attacks . | . . . . . . Total Damage . | . . . . . . Kills . | . . . . . . Allies Corrupted . | . . . . . . Allies Melted . | . . . . . . Intel | -11 -10 -9 -9 -9 -8 ------- Run | Scr Mat Mat Min Exi Min Robot Analysis Total . | . . . . . . Derelict Logs Recovered 1 | . . . 1 . . Drone Launches . | . . . . . . Drone Recoveries . | . . . . . . Exploration | -11 -10 -9 -9 -9 -8 ------------- Run | Scr Mat Mat Min Exi Min Turns Passed 1365 | 53 254 247 96 496 219 Spaces Moved 1216 | 42 240 210 74 552 98 Core 9 | 9 . . . . . Treads . | . . . . . . Legs 4 | 3 . . . . 1 Wheels 1149 | 30 240 210 74 552 43 Hover . | . . . . . . Flight 54 | . . . . . 54 Fastest Speed 34 | 50 90 90 90 90 34 Average Speed 88 | 84 90 90 90 90 67 Slowest Speed 197 | 120 105 90 90 90 197 Overloaded Moves . | . . . . . . Propulsion Burnouts . | . . . . . . Robots Hopped . | . . . . . . Cave-ins Triggered . | . . . . . . Exploration Rate (%) 32 | 3 33 26 25 93 16 Regions Visited 5 Branch Regions 3 Pre-discovered Areas 1 | . . . . 1 . Known Exits Taken 2 | . . . 1 1 . Unknown Exits Taken 3 | 1 1 1 . . . Scrap Searched 1 | . . . 1 . . Spaces Dug 2 | . . . . . 2 Terrain Destroyed 4 | . . 1 . . 3 Melee 1 | . . . . . 1 Projectile 3 | . . 1 . . 2 AOE . | . . . . . . Terrain Rammed . | . . . . . . Walls Destroyed . | . . . . . . Machines Disabled . | . . . . . . Actions | -11 -10 -9 -9 -9 -8 --------- Run | Scr Mat Mat Min Exi Min Total 1448 | 58 276 260 101 551 202 Wait 110 | . 19 31 22 . 38 Move 1211 | 41 239 209 73 551 98 Hop . | . . . . . . Pick Up 23 | 8 7 5 2 . 1 Fast Attach 11 | 2 3 2 . . 4 Attach 12 | 5 . 1 . . 6 Detach 4 | 1 1 . . . 2 Swap 11 | 1 2 2 1 . 5 Drop 19 | . 4 6 2 . 7 Fire 17 | . 1 4 1 . 11 Melee 14 | . . . . . 14 Ram 5 | . . . . . 5 Kick 11 | . . . . . 11 Crush . | . . . . . . Escape Stasis . | . . . . . . Rewire . | . . . . . . Trap . | . . . . . . Miscellaneous . | . . . . . . Route ------- -11/Scrapyard -10/Materials (discovered 2 exits: *Mat / [*Min]) -9/Materials -9/Mines -9/Exiles (discovered 2 exits: *Min x2) -8/Mines History --------- Turn | Location | Event 9 | -11/Scrapyard | Discovered new exit (range 15) 54 | -11/Scrapyard | Entered Materials 136 | -10/Materials | Discovered new exit (range 14) 260 | -10/Materials | Discovered new exit (range 16) 308 | -10/Materials | Entered another Materials area 308 | -9/Materials | Evolved 2 slots: Propulsion x1, Utility x1 309 | -9/Materials | Build established: Mutant 496 | -9/Materials | Met 8R-AWN 530 | -9/Materials | Discovered new exit (range 15) 555 | -9/Materials | Entered Mines 556 | -9/Mines | Followed 8R-AWN into the Mines 601 | -9/Mines | A weapon hastily lodged in a ceiling crevice suddenly fell to the ground 644 | -9/Mines | Discovered new exit (range 5) 651 | -9/Mines | Identified exit to Exiles 651 | -9/Mines | Entered Exiles 665 | -9/Exiles | Discovered new exit (range 15) 677 | -9/Exiles | Identified exit to Mines 697 | -9/Exiles | Welcomed by 8R-AWN 709 | -9/Exiles | Met EX-HEX 750 | -9/Exiles | Met EX-DEC 767 | -9/Exiles | Learned location of Zion (-7) 793 | -9/Exiles | Met EX-BIN 816 | -9/Exiles | Aligned with FarCom system 817 | -9/Exiles | Given EX-Vault access code 927 | -9/Exiles | Discovered exit to Mines (range 14) 1001 | -9/Exiles | Visited The Gauntlet 1147 | -9/Exiles | Entered Mines 1338 | -8/Mines | Core integrity fell below 50% 1348 | -8/Mines | Core integrity fell below 20% 1366 | -8/Mines | Destroyed by S-10 Pest with Light Assault Rifle Last Messages --------------- 01340_ Destroyed Flight Unit. 01344_ Mining Laser destroyed. 01350_ Kicked S-10 Pest. 01353_ Kicked S-10 Pest out of the way. 01354_ Acquired 2 matter. 01355_ Kicked S-10 Pest. 01355_ U-05 Engineer builds a Wall. 01356_ Kicked S-10 Pest out of the way. 01356_ Destroyed Lgt. Ion Engine. 01356_ S-10 Pest system corrupted by crushing effect. 01357_ S-10 Pest system terminally corrupted. 01357_ Lgt. Assault Rifle fried. 01357_ Flight Unit fried. 01357_ Kicked S-10 Pest out of the way. 01359_ ECM Suite destroyed. 01361_ Kicked S-10 Pest. 01362_ Kicked S-10 Pest out of the way. 01363_ K-01 Serf collects debris. 01364_ Imp. Aluminum Leg destroyed. 01364_ Slammed into S-10 Pest. Map ----- +----------------------------------------------------+ | ?????????????????????????????????????????? | | ?????????????????????????????????????????? | | ?????????????????????????????????????????? | | ?????????????????????????????????????????? | | ?????????????????????????????????????????? | | ?????????????????????????????????????????? | | ?????????????????????????????????????????? | | ?????????????????????????????????????????? | | ???????????????????????????? ???????????? | | ???????????????????????????? #?????????? | | ??????????????????????????? #?????????? | | ??????????????????????????? ##????????? | | ??????????????????????????? #????????? | | ??????????????????????????? ##???????? | | ???????????????????????????s ##??????? | | ??????????????????????????# ???????? | | ??????????????s????????### ????????? | | ???????????????s??????## ?????????? | | ?????????????????????## ??????????? | | ?????????????????????# t ???????????? | | ???????????????s?????# #????????????? | | ??????????????????????? #?????????????? | | ?????????????????## ????#%#??????????????? | | ?????????????# ## ###%###????????????? | | ????????????# t r%s%#????????????? | | ???????????# k s@s%#????????????? | | ??????????# """ ######s#????????????? | | ???????????????? """?????## ############?? | | ?????????????????"????????#*## #? | | ??????????????????????????#/[ #? | | ??????????????????????????# ## #? | | ??????????????????????????#[## """ """ #? | | ??????????????????????????#%## """ """ ?? | | ????????????????????????###=## """ """??? | | ????????????????????#######%## ???? | | ????????????????????# =[ # """ "????? | | ????????????????????# = ==# """ ""???? | | ????????????????????# ]=!*= # """ """??? | | ????????????????????# ]! *# ?????? | | ????????????????????# ! % "###????????? | | ????????????????????# %* *!##??????????? | | ????????????????????# %=!#???????????? | | ????????????????????##########???????????? | | ?????????????????????????????????????????? | | ?????????????????????????????????????????? | | ?????????????????????????????????????????? | | ?????????????????????????????????????????? | | ?????????????????????????????????????????? | | ?????????????????????????????????????????? | | ?????????????????????????????????????????? | +----------------------------------------------------+ Best States ------------- Heat Dissipation 28 Energy Generation 10 Energy Capacity 125 Matter Stores 300 Matter Capacity 300 Sight Range 16 Terrain Scan Density 10 ECM Strength 1 Evasion (%) 63 Targeting Accuracy 5 Item Schematics ----------------- None Robot Schematics ------------------ None Fabricated ------------ Nothing Alien Tech Used ----------------- None Achievements -------------- None Challenges ------------ None Game ------ Seed SeismicWeaponLog Manual? 0 Play Time 00:29:27 Cumulative 20.5 hours Start 2022.03.19 @ 20:52:15 End 2022.03.19 @ 21:20:18 Sessions 1 Manual Loads 0 Difficulty Rogue Special Mode None Game No. 39 Rogue 39 Adventurer 0 Explorer 0 Win Type - Total 0 Types 0/0/0/0/0/0/0/0/0 Lore% 21 Gallery% 25 Achievement% 20 Wizard Run 0 Options --------- ASCII 0 Keyboard 0 Movement Numpad Keybinds 0 Fullscreen 2 Font 18/SmallcapsGlow Map View 76x50 Tactical HUD 1 Map Filters NONE Filters NONE Steam 1 RUN: a971e4d2-bc04-4ffa-a38f-fe907e04d752